[Event "55th Rubinstein Memorial-A 2019"]
[Site "Polanica-Zdroj"]
[Date "2019.08.25"]
[Round "9.20"]
[White "Mazalon, Mariusz"]
[Black "Pluta, Natalia"]
[Result "1-0"]
[ECO "E90"]
[WhiteElo "2012"]
[BlackElo "1808"]
[Annotator "NA"]
[PlyCount "117"]
[EventDate "2019.08.17"]
[EventType "swiss"]
[EventCountry "POL"]
[SourceTitle "playchess.com"]
[Source "ChessBase"]
[SourceQuality "1"]
[TimeControl "40/5400+30:1800+30"]

1. d4 {[%emt 0:00:00]} Nf6 {[%emt 0:06:12]} 2. c4 {[%emt 0:00:19]} g6 {[%emt 0:00:04]} 3. Nc3 {[%emt 0:00:19]} Bg7 {[%emt 0:00:05]} 4. e4 {[%emt 0:00:23]} d6 {[%emt 0:00:04]} 5. Nf3 {[%emt 0:00:24]} O-O {[%emt 0:00:12]} 6. h3 {[%emt 0:00:34]} e5 {[%emt 0:00:17]} 7. d5 {[%emt 0:00:08]} a5 {[%emt 0:00:21]} 8. Bg5 {[%emt 0:00:13]} Na6 {[%emt 0:00:08]} 9. Nd2 {[%emt 0:00:52]} Qe8 {[%emt 0:00:15]} 10. g4 {[%emt 0:09:34]} Nd7 {[%emt 0:01:02]} 11. a3 {[%emt 0:01:48]} Nb6 {[%emt 0:02:56]} 12. b3 {[%emt 0:06:33]} f5 {[%emt 0:05:49]} 13. f3 {[%emt 0:03:40]} Qf7 {[%emt 0:18:26]} 14. Be3 {[%emt 0:06:03]} Bd7 {[%emt 0:08:55]} 15. Bd3 {[%emt 0:05:26]} Qe7 {[%emt 0:14:23]} 16. h4 {[%emt 0:15:00]} Nc5 {[%emt 0:00:45]} 17. Be2 {[%emt 0:02:18]} fxg4 {[%emt 0:08:22]} 18. fxg4 {[%emt 0:00:14]} Rf4 {[%emt 0:01:14]} 19. g5 {[%emt 0:00:51]} h6 {[%emt 0:02:18]} 20. Qc2 {[%emt 0:03:01]} hxg5 {[%emt 0:00:41]} 21. hxg5 {[%emt 0:00:05]} Qxg5 {[%emt 0:01:36]} 22. O-O-O {[%emt 0:00:15]} Qf6 {[%emt 0:03:11]} 23. Rdg1 {[%emt 0:02:08]} Be8 {[%emt 0:01:26]} 24. Kb2 {[%emt 0:00:14]} Rh4 {[%emt 0:00:55]} 25. Qd1 {[%emt 0:07:18]} Rxh1 {[%emt 0:02:56]} 26. Rxh1 {[%emt 0:01:28]} Bd7 {[%emt 0:03:21]} 27. Qg1 {[%emt 0:00:45]} Rf8 {[%emt 0:00:53]} 28. Qh2 {[%emt 0:01:14]} Rf7 {[%emt 0:02:49]} 29. Qh7+ {[%emt 0:03:02]} Kf8 {[%emt 0:00:09]} 30. Rf1 {[%emt 0:02:24]} Qe7 {[%emt 0:04:18]} 31. Bh6 {[%emt 0:05:39]} Ke8 {[%emt 0:04:01]} 32. Rxf7 {[%emt 0:02:51]} Qxf7 {[%emt 0:00:07]} 33. Qxg7 {[%emt 0:00:09]} Qxg7 {[%emt 0:00:29]} 34. Bxg7 {[%emt 0:00:02]} g5 {[%emt 0:00:07]} 35. Bf6 {[%emt 0:00:37]} g4 {[%emt 0:00:08]} 36. Bh4 {[%emt 0:00:05]} Kf7 {[%emt 0:00:18]} 37. Nb5 {[%emt 0:02:11]} Na6 {[%emt 0:00:45]} 38. Bf2 {[%emt 0:04:10]} Nc8 {[%emt 0:01:18]} 39. Kc3 {[%emt 0:01:21]} g3 {[%emt 0:04:32]} 40. Bxg3 {[%emt 0:00:18]} c6 {[%emt 0:00:00]} 41. Nxd6+ {[%emt 0:01:28]} Nxd6 {[%emt 0:00:08]} 42. Bxe5 {[%emt 0:00:13]} Ke7 {[%emt 0:01:27]} 43. b4 {[%emt 0:01:18]} cxd5 {[%emt 0:01:26]} 44. exd5 {[%emt 0:01:21]} Nf7 {[%emt 0:02:18]} 45. Bf4 {[%emt 0:01:05]} Kf6 {[%emt 0:02:39]} 46. c5 {[%emt 0:01:59]} axb4+ {[%emt 0:01:40]} 47. axb4 {[%emt 0:00:18]} Kf5 {[%emt 0:00:16]} 48. Bg3 {[%emt 0:00:40]} Ng5 {[%emt 0:01:25]} 49. Bd3+ {[%emt 0:02:43]} Kg4 {[%emt 0:02:08]} 50. Bh2 {[%emt 0:00:39]} Kh3 {[%emt 0:00:56]} 51. Bd6 {[%emt 0:01:04]} Nf7 {[%emt 0:00:16]} 52. Ne4 {[%emt 0:01:31]} Bf5 {[%emt 0:02:48]} 53. Nf2+ {[%emt 0:02:31]} Kg2 {[%emt 0:00:19]} 54. Bxf5 {[%emt 0:00:41]} Kxf2 {[%emt 0:00:07]} 55. Bc8 {[%emt 0:00:21]} Ke3 {[%emt 0:01:02]} 56. Bxb7 {[%emt 0:00:22]} Nxd6 {[%emt 0:00:09]} 57. cxd6 {[%emt 0:00:14]} Nb8 {[%emt 0:00:05]} 58. Bc6 {[%emt 0:00:30]} Ke4 {[%emt 0:00:08]} 59. d7 {[%emt 0:00:19] Kxd5} 1-0

[Event "55th Rubinstein Memorial-A 2019"]
[Site "Polanica-Zdroj"]
[Date "2019.08.25"]
[Round "9.21"]
[White "Wloch, Mikolaj"]
[Black "Luberanski, Jakub"]
[Result "0-1"]
[ECO "B80"]
[WhiteElo "1771"]
[BlackElo "1996"]
[Annotator "NA"]
[PlyCount "116"]
[EventDate "2019.08.17"]
[EventType "swiss"]
[EventCountry "POL"]
[SourceTitle "playchess.com"]
[Source "ChessBase"]
[SourceQuality "1"]
[TimeControl "40/5400+30:1800+30"]

1. e4 {[%emt 0:00:00]} c5 {[%emt 0:00:00]} 2. Nf3 {[%emt 0:00:00]} e6 {[%emt 0:00:01]} 3. d4 {[%emt 0:00:00]} cxd4 {[%emt 0:00:14]} 4. Nxd4 {[%emt 0:00:00]} Nf6 {[%emt 0:00:22]} 5. Nc3 {[%emt 0:00:45]} d6 {[%emt 0:00:05]} 6. Be3 {[%emt 0:00:29]} a6 {[%emt 0:00:03]} 7. a4 {[%emt 0:00:39]} Nc6 {[%emt 0:00:51]} 8. Be2 {[%emt 0:00:50]} Be7 {[%emt 0:00:04]} 9. O-O {[%emt 0:00:40]} O-O {[%emt 0:00:06]} 10. Nb3 {[%emt 0:00:53]} Na5 {[%emt 0:01:42]} 11. f4 {[%emt 0:05:42]} Nxb3 {[%emt 0:01:08]} 12. cxb3 {[%emt 0:00:02]} Qa5 {[%emt 0:03:05]} 13. Qd2 {[%emt 0:04:29]} Qb4 {[%emt 0:06:46]} 14. e5 {[%emt 0:21:16]} dxe5 {[%emt 0:01:28]} 15. fxe5 {[%emt 0:00:05]} Nd7 {[%emt 0:00:32]} 16. Rf4 {[%emt 0:04:40]} Qa5 {[%emt 0:02:31]} 17. Raf1 {[%emt 0:12:00]} Nxe5 {[%emt 0:08:51]} 18. Kh1 {[%emt 0:08:16]} Bg5 {[%emt 0:08:04]} 19. R4f2 {[%emt 0:00:05]} Bxe3 {[%emt 0:00:08]} 20. Qxe3 {[%emt 0:00:07]} Ng6 {[%emt 0:04:03]} 21. Ne4 {[%emt 0:01:29]} Qe5 {[%emt 0:01:50]} 22. Qd3 {[%emt 0:02:30]} b6 {[%emt 0:08:53]} 23. Ng3 {[%emt 0:01:01]} Bb7 {[%emt 0:01:28]} 24. Qd7 {[%emt 0:01:38]} Qd5 {[%emt 0:00:58]} 25. Qc7 {[%emt 0:02:17]} Qc6 {[%emt 0:01:42]} 26. Qxc6 {[%emt 0:01:15]} Bxc6 {[%emt 0:00:02]} 27. Bd3 {[%emt 0:01:33]} Ne5 {[%emt 0:02:10]} 28. Be4 {[%emt 0:00:42]} Rac8 {[%emt 0:00:53]} 29. Bxc6 {[%emt 0:00:43]} Rxc6 {[%emt 0:00:09]} 30. Re2 {[%emt 0:00:52]} f6 {[%emt 0:00:40]} 31. Ne4 {[%emt 0:00:31]} Rd8 {[%emt 0:01:36]} 32. h3 {[%emt 0:01:06]} Rd3 {[%emt 0:01:20]} 33. Nc3 {[%emt 0:00:21]} Rcd6 {[%emt 0:01:21]} 34. Rff2 {[%emt 0:03:21]} R6d4 {[%emt 0:01:11]} 35. Rc2 {[%emt 0:01:39]} Rb4 {[%emt 0:02:21]} 36. Kh2 {[%emt 0:02:39]} Rxb3 {[%emt 0:03:54]} 37. Ne4 {[%emt 0:00:19]} Rd8 {[%emt 0:01:16]} 38. Rc7 {[%emt 0:01:47]} Rb4 {[%emt 0:03:15]} 39. Nc3 {[%emt 0:00:47]} Nd3 {[%emt 0:03:33]} 40. Rf3 {[%emt 0:00:00]} Nxb2 {[%emt 0:00:00]} 41. Rg3 {[%emt 0:03:26]} g6 {[%emt 0:08:52]} 42. Re3 {[%emt 0:00:06]} e5 {[%emt 0:17:30]} 43. Ne4 {[%emt 0:07:06]} Rf8 {[%emt 0:00:20]} 44. g4 {[%emt 0:05:47]} Rf7 {[%emt 0:05:18]} 45. Rc8+ {[%emt 0:00:04]} Kg7 {[%emt 0:00:04]} 46. g5 {[%emt 0:01:05]} fxg5 {[%emt 0:01:01]} 47. Nxg5 {[%emt 0:00:07]} Re7 {[%emt 0:00:09]} 48. Ne4 {[%emt 0:03:48]} Nxa4 {[%emt 0:01:48]} 49. Nd6 {[%emt 0:00:31]} Rf4 {[%emt 0:02:57]} 50. Kg3 {[%emt 0:01:13]} Nc5 {[%emt 0:01:25]} 51. Rc6 {[%emt 0:00:45]} Rb4 {[%emt 0:01:46]} 52. Nc8 {[%emt 0:00:44]} Re6 {[%emt 0:01:04]} 53. Rc7+ {[%emt 0:00:09]} Kh6 {[%emt 0:00:07]} 54. Ne7 {[%emt 0:00:40]} Ne4+ {[%emt 0:02:05]} 55. Kg2 {[%emt 0:00:57]} Kg5 {[%emt 0:00:52]} 56. Kf3 {[%emt 0:02:38]} Rf6+ {[%emt 0:00:28]} 57. Ke2 {[%emt 0:01:31]} Rf2+ {[%emt 0:00:09]} 58. Kd1 {[%emt 0:00:40]} Rb1+ {[%emt 0:00:04]} 0-1

[Event "55th Rubinstein Memorial-A 2019"]
[Site "Polanica-Zdroj"]
[Date "2019.08.25"]
[Round "9.22"]
[White "Siekanski, Janusz"]
[Black "Szydlo, Michal"]
[Result "1-0"]
[ECO "E97"]
[WhiteElo "2263"]
[BlackElo "1865"]
[Annotator "NA"]
[PlyCount "71"]
[EventDate "2019.08.17"]
[EventType "swiss"]
[EventCountry "POL"]
[SourceTitle "playchess.com"]
[Source "ChessBase"]
[SourceQuality "1"]
[TimeControl "40/5400+30:1800+30"]

1. d4 {[%emt 0:00:00]} Nf6 {[%emt 0:00:00]} 2. c4 {[%emt 0:00:00]} g6 {[%emt 0:00:00]} 3. Nc3 {[%emt 0:00:01]} Bg7 {[%emt 0:00:00]} 4. e4 {[%emt 0:00:09]} d6 {[%emt 0:00:00]} 5. Nf3 {[%emt 0:00:07]} O-O {[%emt 0:00:00]} 6. Be2 {[%emt 0:00:06]} e5 {[%emt 0:00:03]} 7. O-O {[%emt 0:00:10]} Nc6 {[%emt 0:00:04]} 8. d5 {[%emt 0:00:09]} Ne7 {[%emt 0:00:05]} 9. Nd2 {[%emt 0:00:31]} Ne8 {[%emt 0:00:07]} 10. b4 {[%emt 0:00:37]} f5 {[%emt 0:00:07]} 11. c5 {[%emt 0:00:41]} Nf6 {[%emt 0:00:14]} 12. f3 {[%emt 0:01:09]} f4 {[%emt 0:00:18]} 13. Nc4 {[%emt 0:00:27]} g5 {[%emt 0:00:17]} 14. a4 {[%emt 0:00:57]} Ng6 {[%emt 0:00:17]} 15. a5 {[%emt 0:02:02]} Rf7 {[%emt 0:01:07]} 16. Bb2 {[%emt 0:00:30]} h5 {[%emt 0:02:30]} 17. b5 {[%emt 0:12:30]} dxc5 {[%emt 0:49:21]} 18. b6 {[%emt 0:01:00]} g4 {[%emt 0:07:59]} 19. bxc7 {[%emt 0:06:45]} Rxc7 {[%emt 0:00:22]} 20. Nb5 {[%emt 0:13:42]} g3 {[%emt 0:02:14]} 21. Nxc7 {[%emt 0:01:26]} Nxe4 {[%emt 0:03:43]} 22. Ne6 {[%emt 0:11:40]} Qh4 {[%emt 0:00:40]} 23. h3 {[%emt 0:00:38]} Bxe6 {[%emt 0:01:17]} 24. dxe6 {[%emt 0:02:40]} Ng5 {[%emt 0:00:27]} 25. Qc2 {[%emt 0:07:22]} Nxh3+ {[%emt 0:01:05]} 26. gxh3 {[%emt 0:00:08]} Qxh3 {[%emt 0:00:36]} 27. Bd3 {[%emt 0:00:26]} Nh4 {[%emt 0:00:21]} 28. Nxe5 {[%emt 0:05:58]} Bxe5 {[%emt 0:10:36]} 29. Bxe5 {[%emt 0:00:43]} g2 {[%emt 0:00:38]} 30. Bh7+ {[%emt 0:01:35]} Kf8 {[%emt 0:00:01]} 31. Qxc5+ {[%emt 0:02:10]} Ke8 {[%emt 0:00:02]} 32. Qb5+ {[%emt 0:00:35]} Kf8 {[%emt 0:00:41]} 33. Bd6+ {[%emt 0:00:35]} Kg7 {[%emt 0:00:16]} 34. Qg5+ {[%emt 0:00:38]} Kxh7 {[%emt 0:00:04]} 35. Qxh5+ {[%emt 0:00:07]} Kg7 {[%emt 0:00:08]} 36. Be5+ {[%emt 0:00:14]} 1-0

[Event "55th Rubinstein Memorial-A 2019"]
[Site "Polanica-Zdroj"]
[Date "2019.08.25"]
[Round "9.23"]
[White "Kacprzak, Kacper"]
[Black "Galuszka, Kamil"]
[Result "1/2-1/2"]
[ECO "C10"]
[WhiteElo "1856"]
[BlackElo "2058"]
[Annotator "NA"]
[PlyCount "60"]
[EventDate "2019.08.17"]
[EventType "swiss"]
[EventCountry "POL"]
[SourceTitle "playchess.com"]
[Source "ChessBase"]
[SourceQuality "1"]
[TimeControl "40/5400+30:1800+30"]

1. e4 e6 2. d4 d5 3. Nc3 dxe4 4. Nxe4 Nd7 5. Bd3 Ngf6 6. Qe2 c5 7. Nf3 cxd4 8. Nxd4 Nxe4 9. Qxe4 Nc5 10. Bb5+ Bd7 11. Qe2 Bxb5 12. Qxb5+ Qd7 13. Be3 a6 14. Qxd7+ Nxd7 15. O-O-O Bc5 16. Rhe1 Nf6 17. Nf5 Bxe3+ 18. Nxe3 Rd8 19. f3 Rxd1+ 20. Rxd1 Ke7 21. c4 g5 22. Kc2 h5 23. b4 b6 24. a4 Rc8 25. Kb3 Nd7 26. Re1 Kd6 27. Rd1+ Ke7 28. Re1 Kd6 29. Rd1+ Ke7 30. Re1 Kd6 1/2-1/2

[Event "55th Rubinstein Memorial-A 2019"]
[Site "Polanica-Zdroj"]
[Date "2019.08.25"]
[Round "9.24"]
[White "Michalska, Aleksandra"]
[Black "Czarniecka, Aleksandra"]
[Result "0-1"]
[ECO "B20"]
[WhiteElo "1792"]
[BlackElo "2042"]
[Annotator "NA"]
[PlyCount "64"]
[EventDate "2019.08.17"]
[EventType "swiss"]
[EventCountry "POL"]
[SourceTitle "playchess.com"]
[Source "ChessBase"]
[SourceQuality "1"]
[TimeControl "40/5400+30:1800+30"]

1. e4 {[%emt 0:00:00]} c5 {[%emt 0:00:00]} 2. c4 {[%emt 0:00:00]} Nc6 {[%emt 0:00:00]} 3. Nc3 {[%emt 0:00:00]} g6 {[%emt 0:00:00]} 4. Nf3 {[%emt 0:00:00]} Bg7 {[%emt 0:00:00]} 5. Be2 {[%emt 0:00:01]} d6 {[%emt 0:00:12]} 6. h3 {[%emt 0:00:20]} Nh6 {[%emt 0:01:45]} 7. O-O {[%emt 0:02:14]} f5 {[%emt 0:00:18]} 8. d3 {[%emt 0:01:03]} O-O {[%emt 0:00:51]} 9. Re1 {[%emt 0:00:54]} Nf7 {[%emt 0:07:29]} 10. Rb1 {[%emt 0:04:30]} a6 {[%emt 0:02:03]} 11. Be3 {[%emt 0:02:42]} Nd4 {[%emt 0:03:50]} 12. Nh2 {[%emt 0:05:26]} Rb8 {[%emt 0:07:48]} 13. Qd2 {[%emt 0:04:08]} b5 {[%emt 0:02:54]} 14. b3 {[%emt 0:02:46]} b4 {[%emt 0:04:25]} 15. Nd1 {[%emt 0:01:39]} e5 {[%emt 0:17:55]} 16. exf5 {[%emt 0:06:39]} gxf5 {[%emt 0:07:22]} 17. f4 {[%emt 0:02:54]} Ne6 {[%emt 0:01:04]} 18. Bh5 {[%emt 0:06:07]} Nxf4 {[%emt 0:09:14]} 19. Bxf4 {[%emt 0:00:29]} exf4 {[%emt 0:00:04]} 20. Bxf7+ {[%emt 0:01:03]} Rxf7 {[%emt 0:00:22]} 21. Qxf4 {[%emt 0:00:23]} Be5 {[%emt 0:01:12]} 22. Qf1 {[%emt 0:03:33]} Bb7 {[%emt 0:03:47]} 23. Nf3 {[%emt 0:03:39]} f4 {[%emt 0:12:02]} 24. Kh2 {[%emt 0:04:00]} Rg7 {[%emt 0:01:22]} 25. Re2 {[%emt 0:04:18]} Rg3 {[%emt 0:01:30]} 26. Rf2 {[%emt 0:02:07]} Kh8 {[%emt 0:01:36]} 27. Qe2 {[%emt 0:08:31]} Qf6 {[%emt 0:00:53]} 28. Nxe5 {[%emt 0:02:38]} dxe5 {[%emt 0:00:34]} 29. Ne3 {[%emt 0:00:55]} Rbg8 {[%emt 0:07:23]} 30. Rb2 {[%emt 0:14:01]} Rxe3 {[%emt 0:03:16]} 31. Qxe3 {[%emt 0:01:34]} Rxg2+ {[%emt 0:00:11]} 32. Rxg2 {[%emt 0:00:25]} fxe3 {[%emt 0:00:06]} 0-1

[Event "55th Rubinstein Memorial-A 2019"]
[Site "Polanica-Zdroj"]
[Date "2019.08.25"]
[Round "9.25"]
[White "Jeda, Maciej"]
[Black "Wnek, Filip"]
[Result "0-1"]
[ECO "B90"]
[WhiteElo "1815"]
[BlackElo "2021"]
[Annotator "NA"]
[PlyCount "120"]
[EventDate "2019.08.17"]
[EventType "swiss"]
[EventCountry "POL"]
[SourceTitle "playchess.com"]
[Source "ChessBase"]
[SourceQuality "1"]
[TimeControl "40/5400+30:1800+30"]

1. e4 {[%emt 0:00:00]} c5 {[%emt 0:00:00]} 2. Nf3 {[%emt 0:00:00]} d6 {[%emt 0:00:00]} 3. d4 {[%emt 0:00:00]} cxd4 {[%emt 0:00:00]} 4. Nxd4 {[%emt 0:00:00]} Nf6 {[%emt 0:00:00]} 5. Nc3 {[%emt 0:00:10]} a6 {[%emt 0:00:00]} 6. a4 {[%emt 0:01:08]} e6 {[%emt 0:12:18]} 7. Be2 {[%emt 0:01:18]} Nbd7 {[%emt 0:00:24]} 8. Be3 {[%emt 0:02:41]} b6 {[%emt 0:01:39]} 9. O-O {[%emt 0:05:00]} Bb7 {[%emt 0:00:14]} 10. f3 {[%emt 0:00:16]} Be7 {[%emt 0:00:13]} 11. Qe1 {[%emt 0:02:28]} O-O {[%emt 0:01:06]} 12. Qg3 {[%emt 0:03:54]} Kh8 {[%emt 0:05:35]} 13. Rfd1 {[%emt 0:05:33]} Rc8 {[%emt 0:00:29]} 14. Nb3 {[%emt 0:30:53]} Qc7 {[%emt 0:13:54]} 15. Qf2 {[%emt 0:01:25]} Rfd8 {[%emt 0:10:03]} 16. Rd2 {[%emt 0:17:08]} Nc5 {[%emt 0:06:33]} 17. Rad1 {[%emt 0:06:16]} Rd7 {[%emt 0:09:34]} 18. Nd4 {[%emt 0:07:24]} d5 {[%emt 0:05:43]} 19. exd5 {[%emt 0:01:31]} Nxd5 {[%emt 0:00:08]} 20. Nxd5 {[%emt 0:00:31]} Rxd5 {[%emt 0:03:13]} 21. b3 {[%emt 0:03:05]} Rcd8 {[%emt 0:00:52]} 22. Bc4 {[%emt 0:01:50]} R5d7 {[%emt 0:00:36]} 23. Qe2 {[%emt 0:01:42]} Qe5 {[%emt 0:10:37]} 24. Qf2 {[%emt 0:01:22]} Bd6 {[%emt 0:01:23]} 25. g3 {[%emt 0:00:21]} Qf6 {[%emt 0:00:18]} 26. Kg2 {[%emt 0:01:15]} Bc7 {[%emt 0:02:19]} 27. Ne2 {[%emt 0:02:18]} Rxd2 {[%emt 0:01:21]} 28. Rxd2 {[%emt 0:00:07]} Rxd2 {[%emt 0:00:06]} 29. Bxd2 {[%emt 0:00:08]} Qb2 {[%emt 0:01:10]} 30. Be3 {[%emt 0:03:29]} Nd7 {[%emt 0:04:08]} 31. Nd4 {[%emt 0:01:08]} Nf6 {[%emt 0:01:31]} 32. Kh3 {[%emt 0:00:49]} Nd5 {[%emt 0:04:32]} 33. Qd2 {[%emt 0:00:31]} Nxe3 {[%emt 0:01:20]} 34. Qxe3 {[%emt 0:00:06]} Qa3 {[%emt 0:00:43]} 35. Qd3 {[%emt 0:00:55]} Qd6 {[%emt 0:03:07]} 36. Qe3 {[%emt 0:00:24]} e5 {[%emt 0:00:46]} 37. Nf5 {[%emt 0:00:33]} Bc8 {[%emt 0:00:42]} 38. Qg5 {[%emt 0:00:36]} Qg6 {[%emt 0:00:29]} 39. Qe7 {[%emt 0:00:31]} Qxf5+ {[%emt 0:00:30]} 40. Kg2 {[%emt 0:00:00]} Qxc2+ {[%emt 0:00:00]} 41. Kg1 {[%emt 0:00:51]} Qd1+ {[%emt 0:00:27]} 42. Kg2 {[%emt 0:00:13]} Qd8 {[%emt 0:00:14]} 43. Qxf7 {[%emt 0:00:18]} Bd6 {[%emt 0:00:44]} 44. Bd5 {[%emt 0:01:00]} Bd7 {[%emt 0:01:19]} 45. Be4 {[%emt 0:00:44]} Qe8 {[%emt 0:06:53]} 46. Qd5 {[%emt 0:00:26]} Bb8 {[%emt 0:01:12]} 47. Qb7 {[%emt 0:00:14]} Qc8 {[%emt 0:00:53]} 48. Qxb6 {[%emt 0:00:10]} Bh3+ {[%emt 0:00:11]} 49. Kf2 {[%emt 0:00:25]} Qc7 {[%emt 0:02:08]} 50. Qb4 {[%emt 0:00:23]} Ba7+ {[%emt 0:00:37]} 51. Ke2 {[%emt 0:00:09]} Qc5 {[%emt 0:00:39]} 52. Qb7 {[%emt 0:00:33]} Qe3+ {[%emt 0:00:31]} 53. Kd1 {[%emt 0:00:07]} Be6 {[%emt 0:00:22]} 54. Qa8+ {[%emt 0:00:53]} Bg8 {[%emt 0:00:32]} 55. Qe8 {[%emt 0:00:18]} Qxb3+ {[%emt 0:00:22]} 56. Ke2 {[%emt 0:00:11]} Qe3+ {[%emt 0:00:34]} 57. Kd1 {[%emt 0:00:08]} Qg1+ {[%emt 0:00:18]} 58. Ke2 {[%emt 0:00:16]} Qxh2+ {[%emt 0:00:21]} 59. Kd3 {[%emt 0:00:08]} Qxg3 {[%emt 0:00:51]} 60. Qh5 {[%emt 0:00:49]} Qf4 {[%emt 0:01:46] Kd4} 0-1

[Event "55th Rubinstein Memorial-A 2019"]
[Site "Polanica-Zdroj"]
[Date "2019.08.25"]
[Round "9.26"]
[White "Kaczmarek, Arkadiusz"]
[Black "Twardowski, Hubert"]
[Result "1/2-1/2"]
[ECO "D89"]
[WhiteElo "1986"]
[BlackElo "1822"]
[Annotator "NA"]
[PlyCount "130"]
[EventDate "2019.08.17"]
[EventType "swiss"]
[EventCountry "POL"]
[SourceTitle "playchess.com"]
[Source "ChessBase"]
[SourceQuality "1"]
[TimeControl "40/5400+30:1800+30"]

1. d4 {[%emt 0:00:00]} Nf6 {[%emt 0:01:09]} 2. c4 {[%emt 0:00:00]} g6 {[%emt 0:00:36]} 3. Nc3 {[%emt 0:00:00]} d5 {[%emt 0:00:15]} 4. cxd5 {[%emt 0:00:00]} Nxd5 {[%emt 0:00:05]} 5. e4 {[%emt 0:00:07]} Nxc3 {[%emt 0:01:03]} 6. bxc3 {[%emt 0:00:02]} Bg7 {[%emt 0:00:15]} 7. Bc4 {[%emt 0:00:08]} c5 {[%emt 0:00:13]} 8. Ne2 {[%emt 0:00:06]} Nc6 {[%emt 0:00:08]} 9. Be3 {[%emt 0:00:08]} O-O {[%emt 0:00:33]} 10. O-O {[%emt 0:00:07]} Bg4 {[%emt 0:09:51]} 11. f3 {[%emt 0:00:13]} Na5 {[%emt 0:06:45]} 12. Bd3 {[%emt 0:00:14]} cxd4 {[%emt 0:00:42]} 13. cxd4 {[%emt 0:00:10]} Be6 {[%emt 0:00:42]} 14. d5 {[%emt 0:00:12]} Bxa1 {[%emt 0:05:35]} 15. Qxa1 {[%emt 0:00:02]} f6 {[%emt 0:00:10]} 16. Bh6 {[%emt 0:00:14]} Re8 {[%emt 0:00:09]} 17. Kh1 {[%emt 0:00:14]} Bd7 {[%emt 0:05:55]} 18. e5 {[%emt 0:05:01]} e6 {[%emt 0:00:26]} 19. exf6 {[%emt 0:11:10]} Kf7 {[%emt 0:00:28]} 20. Bg7 {[%emt 0:03:16]} exd5 {[%emt 0:14:32]} 21. Qc1 {[%emt 0:18:37]} Re6 {[%emt 0:33:12]} 22. Nf4 {[%emt 0:19:50]} Rc8 {[%emt 0:09:59]} 23. Nxe6 {[%emt 0:02:34]} Bxe6 {[%emt 0:00:02]} 24. Qh6 {[%emt 0:00:27]} Qg8 {[%emt 0:00:10]} 25. f4 {[%emt 0:06:44]} Rc3 {[%emt 0:01:29]} 26. Bb1 {[%emt 0:01:16]} Nc4 {[%emt 0:01:44]} 27. f5 {[%emt 0:00:19]} Bxf5 {[%emt 0:00:47]} 28. Bxf5 {[%emt 0:02:20]} Ne3 {[%emt 0:00:08]} 29. Rb1 {[%emt 0:10:09]} Nxf5 {[%emt 0:01:32]} 30. Qd2 {[%emt 0:00:24]} d4 {[%emt 0:05:13]} 31. Rxb7+ {[%emt 0:13:57]} Ke6 {[%emt 0:00:04]} 32. Kg1 {[%emt 0:05:41]} Qc8 {[%emt 0:01:15]} 33. Qe2+ {[%emt 0:00:14]} Ne3 {[%emt 0:00:45]} 34. Qa6+ {[%emt 0:01:20]} Rc6 {[%emt 0:00:32]} 35. Re7+ {[%emt 0:00:18]} Kd6 {[%emt 0:00:18]} 36. Qa3+ {[%emt 0:01:18]} Kd5 {[%emt 0:00:26]} 37. Qb3+ {[%emt 0:00:31]} Kd6 {[%emt 0:00:40]} 38. Qb4+ {[%emt 0:00:45]} Kd5 {[%emt 0:00:18]} 39. Qb5+ {[%emt 0:00:41]} Rc5 {[%emt 0:00:42]} 40. Qd7+ {[%emt 0:00:00]} Qxd7 {[%emt 0:00:00]} 41. Rxd7+ {[%emt 0:00:32]} Ke6 {[%emt 0:11:38]} 42. Re7+ {[%emt 0:09:45]} Kd6 {[%emt 0:00:08]} 43. Kf2 {[%emt 0:00:42]} Rf5+ {[%emt 0:14:02]} 44. Ke2 {[%emt 0:01:16]} a5 {[%emt 0:04:17]} 45. Kd3 {[%emt 0:12:31]} Nxg2 {[%emt 0:00:22]} 46. Kxd4 {[%emt 0:00:22]} Nf4 {[%emt 0:00:22]} 47. Ra7 {[%emt 0:00:52]} Ne6+ {[%emt 0:00:20]} 48. Kc4 {[%emt 0:00:25]} g5 {[%emt 0:03:02]} 49. Ra6+ {[%emt 0:04:17]} Kd7 {[%emt 0:00:15]} 50. Rb6 {[%emt 0:00:19]} g4 {[%emt 0:00:34]} 51. Rb7+ {[%emt 0:02:16]} Kd6 {[%emt 0:01:07]} 52. Rb6+ {[%emt 0:00:36]} Kd7 {[%emt 0:00:11]} 53. Rb5 {[%emt 0:02:20]} Rf4+ {[%emt 0:00:26]} 54. Kd3 {[%emt 0:00:13]} a4 {[%emt 0:00:27]} 55. Rh5 {[%emt 0:01:11]} Ke8 {[%emt 0:00:43]} 56. Rxh7 {[%emt 0:00:26]} Nxg7 {[%emt 0:00:23]} 57. Rxg7 {[%emt 0:00:26]} Rf3+ {[%emt 0:00:46]} 58. Kc4 {[%emt 0:01:00]} Ra3 {[%emt 0:00:27]} 59. Rxg4 {[%emt 0:00:24]} Rxa2 {[%emt 0:00:07]} 60. h4 {[%emt 0:00:40]} Rf2 {[%emt 0:00:29]} 61. Kb4 {[%emt 0:00:27]} Rxf6 {[%emt 0:00:15]} 62. Kxa4 {[%emt 0:00:07]} Rf5 {[%emt 0:00:15]} 63. Kb4 {[%emt 0:00:11]} Kf7 {[%emt 0:00:07]} 64. Kc4 {[%emt 0:00:08]} Ra5 {[%emt 0:01:04]} 65. Kd3 {[%emt 0:00:12]} Re5 {[%emt 0:00:05] Ke4 Ke7+} 1/2-1/2